fUSD/lending_fUSD_20251223
["ID","MTS","AMOUNT","RATE_DAILY","PERIOD"]
[399532707,1766453439903,-150.99,0.00012093,2]
[399532708,1766453439912,-299.99,0.00012093,2]
[399532709,1766453439926,-9999.99,0.00012093,2]
[399532710,1766453439935,-200.0,0.00012093,2]
[399532711,1766453439945,-151.0,0.00012093,2]
[399532712,1766453439954,-500.0,0.00012093,2]
[399532713,1766453439963,-151.0,0.00012093,2]
[399532714,1766453439983,-500.0,0.00012093,2]
[399532715,1766453439992,-151.0,0.00012093,2]
[399532716,1766453440001,-500.0,0.00012093,2]
[399532717,1766453440010,-151.0,0.00012093,2]
[399532718,1766453440019,-500.0,0.00012093,2]
[399532719,1766453440028,-151.0,0.00012093,2]
[399532720,1766453440037,-500.0,0.00012093,2]
[399532721,1766453440047,-151.0,0.00012093,2]
[399532722,1766453440056,-500.0,0.00012093,2]
[399532723,1766453440065,-151.0,0.00012093,2]
[399532724,1766453440074,-500.0,0.00012093,2]
[399532725,1766453440084,-151.0,0.00012093,2]
[399532726,1766453440093,-500.0,0.00012093,2]
[399532727,1766453440102,-151.0,0.00012093,2]
[399532728,1766453440111,-151.0,0.00012093,2]
[399532729,1766453440120,-500.0,0.00012093,2]
[399532730,1766453440130,-151.0,0.00012093,2]
[399532731,1766453440139,-500.0,0.00012093,2]
[399532732,1766453440148,-500.0,0.00012093,2]
[399532733,1766453440157,-500.0,0.00012093,2]
[399532734,1766453440167,-500.0,0.00012093,2]
[399532735,1766453440176,-500.0,0.00012093,2]
[399532736,1766453440185,-500.0,0.00012093,2]
[399532737,1766453440194,-500.0,0.00012093,2]
[399532738,1766453440204,-500.0,0.00012093,2]
[399532739,1766453440213,-500.0,0.00012093,2]
[399532740,1766453440222,-500.0,0.00012093,2]
[399532741,1766453440231,-500.0,0.00012093,2]
[399532742,1766453440240,-500.0,0.00012093,2]
[399532744,1766453440249,-500.0,0.00012093,2]
[399532745,1766453440258,-151.0,0.00012093,2]
[399532746,1766453440267,-151.0,0.00012093,2]
[399532747,1766453440276,-500.0,0.00012093,2]
[399532748,1766453440286,-151.0,0.00012093,2]
[399532749,1766453440295,-151.0,0.00012093,2]
[399532750,1766453440304,-200.0,0.00012093,2]
[399532751,1766453440313,-151.0,0.00012093,2]
[399532752,1766453440321,-151.0,0.00012093,2]
[399532753,1766453440330,-151.0,0.00012093,2]
[399532754,1766453440339,-151.0,0.00012093,2]
[399532755,1766453440349,-151.0,0.00012093,2]
[399532756,1766453440358,-151.0,0.00012093,2]
[399532757,1766453440367,-151.0,0.00012093,2]
[399532758,1766453440376,-151.0,0.00012093,2]
[399532759,1766453440385,-151.0,0.00012093,2]
[399532760,1766453440394,-151.0,0.00012093,2]
[399532761,1766453440403,-151.0,0.00012093,2]
[399532762,1766453440412,-200.0,0.00012093,2]
[399532763,1766453440420,-747.0,0.00012096,2]
[399532764,1766453440429,-200.87,0.00012099,2]
[399532765,1766453440438,-6520.279,0.00012099,2]
[399532766,1766453440448,-426.096,0.00012099,2]
[399532767,1766453440456,-150.0,0.00012099,2]
[399532768,1766453440466,-687.0,0.0001212,2]
[399532769,1766453440474,-1600.0,0.00012121,2]
[399532770,1766453440483,-693.0,0.00012144,2]
[399532771,1766453440492,-1125.0,0.00012168,2]
[399532772,1766453440501,-420.0,0.00012179,2]
[399532773,1766453440511,-1680.0,0.00012192,2]
[399532774,1766453440520,-313.0,0.00012207,2]
[399532775,1766453440529,-343.0,0.00012232,2]
[399532776,1766453440538,-1000.0,0.0001225,2]
[399532777,1766453440547,-180.0,0.00012256,2]
[399532778,1766453440556,-255.0,0.00012338,2]
[399532779,1766453440565,-531.0,0.00012345,2]
[399532780,1766453440574,-171.0,0.00012369,2]
[399532781,1766453440583,-200.87,0.00012373,2]
[399532782,1766453440592,-166.66,0.00012376,2]
[399532783,1766453440601,-926.0,0.00012394,2]
[399532784,1766453440610,-1185.0,0.00012419,2]
[399532785,1766453440619,-346.0,0.00012443,2]
[399532786,1766453440628,-1885.0,0.00012468,2]
[399532787,1766453440637,-162.03360746,0.00012542,2]
[399532788,1766453440646,-365.28932412,0.00012563,2]
[399532789,1766453440655,-4716.48436413,0.00012586,2]
[399532790,1766453440664,-200.0,0.00012641,2]
[399532791,1766453440674,-500.0,0.00012641,2]
[399532792,1766453440684,-200.0,0.00012641,2]
[399532793,1766453440695,-200.87,0.00012647,2]
[399532795,1766453440704,-773.23932296,0.00012744,2]
[399532796,1766453440714,-166.66,0.00012748,2]
[399532798,1766453440723,-200.87,0.00012921,2]
[399532800,1766453440732,-365.28932412,0.00013105,2]
[399532802,1766453440741,-166.66,0.00013119,2]
[399532804,1766453440751,-4969.73730641,0.00013174,2]
[399532807,1766453440764,-530.06820518,0.00013174,2]
[399532809,1766453440775,-869.88367772,0.00013174,2]
[399532814,1766453440806,-1859.80493092,0.00013174,2]
[399532816,1766453440817,-923.75208218,0.00013174,2]
[399532818,1766453440831,-200.0,0.00013189,2]
[399532821,1766453440848,-164.73894691,0.00013189,2]
[399532831,1766453440931,-335.26105309,0.00013189,2]
[399532833,1766453440944,-108.18894691,0.00013189,2]
[399532836,1766453440960,-91.81105309,0.00013189,2]
[399532839,1766453440973,-721.12765535,0.00013194,2]
[399532841,1766453440987,-574.12855637,0.00013194,2]
[399532844,1766453441001,-209.40437684,0.00013194,2]
[399532846,1766453441014,-130.57840822,0.00013194,2]
[399532855,1766453441084,-20.42159178,0.00013194,2]
[399532858,1766453441100,-500.0,0.00013194,2]
[399532860,1766453441114,-500.0,0.00013194,2]
[399532863,1766453441129,-151.0,0.00013194,2]
[399532865,1766453441142,-500.0,0.00013194,2]
[399532868,1766453441156,-500.0,0.00013194,2]
[399532870,1766453441167,-500.0,0.00013194,2]
[399532873,1766453441184,-250.0,0.00013194,2]
[399532875,1766453441199,-500.0,0.00013194,2]
[399532878,1766453441211,-250.0,0.00013194,2]
[399532880,1766453441222,-250.0,0.00013194,2]
[399532882,1766453441233,-500.0,0.00013194,2]
[399532884,1766453441246,-250.0,0.00013194,2]
[399532887,1766453441258,-500.0,0.00013194,2]
[399532889,1766453441270,-250.0,0.00013194,2]
[399532891,1766453441281,-500.0,0.00013194,2]
[399532894,1766453441299,-250.0,0.00013194,2]
[399532896,1766453441311,-500.0,0.00013194,2]
[399532899,1766453441323,-205.01950491,0.00013194,2]
[399532901,1766453441335,-250.0,0.00013194,2]
[399532903,1766453441347,-500.0,0.00013194,2]
[399532906,1766453441359,-250.0,0.00013194,2]
[399532908,1766453441371,-250.0,0.00013194,2]
[399532910,1766453441383,-578.20924308,0.00013194,2]
[399532911,1766453441395,-250.0,0.00013194,2]
[399532913,1766453441407,-250.0,0.00013194,2]
[399532915,1766453441420,-500.0,0.00013194,2]
[399532916,1766453441432,-500.0,0.00013194,2]
[399532917,1766453441444,-500.0,0.00013194,2]
[399532918,1766453441456,-500.0,0.00013194,2]
[399532919,1766453441468,-620.0,0.00013194,2]
[399532920,1766453441480,-500.0,0.00013194,2]
[399532921,1766453441492,-500.0,0.00013194,2]
[399532922,1766453441504,-500.0,0.00013194,2]
[399532923,1766453441516,-500.0,0.00013194,2]
[399532924,1766453441528,-500.0,0.00013194,2]
[399532925,1766453441540,-500.0,0.00013194,2]
[399532926,1766453441553,-500.0,0.00013194,2]
[399532927,1766453441566,-500.0,0.00013194,2]
[399532928,1766453441578,-500.0,0.00013194,2]
[399532929,1766453441589,-500.0,0.00013194,2]
[399532930,1766453441602,-500.0,0.00013194,2]
[399532931,1766453441614,-500.0,0.00013194,2]
[399532932,1766453441626,-500.0,0.00013194,2]
[399532933,1766453441638,-500.0,0.00013194,2]
[399532934,1766453441650,-500.0,0.00013194,2]
[399532935,1766453441662,-500.0,0.00013194,2]
[399532936,1766453441675,-500.0,0.00013194,2]
[399532937,1766453441686,-500.0,0.00013194,2]
[399532938,1766453441699,-250.0,0.00013194,2]
[399532939,1766453441710,-250.0,0.00013194,2]
[399532940,1766453441722,-250.0,0.00013194,2]
[399532941,1766453441734,-250.0,0.00013194,2]
[399532942,1766453441746,-250.0,0.00013194,2]
[399532943,1766453441758,-250.0,0.00013194,2]
[399532944,1766453441770,-250.0,0.00013194,2]
[399532945,1766453441782,-250.0,0.00013194,2]
[399532946,1766453441794,-250.0,0.00013194,2]
[399532947,1766453441806,-250.0,0.00013194,2]
[399532948,1766453441818,-250.0,0.00013194,2]
[399532949,1766453441830,-322.6107,0.00013194,2]
[399532950,1766453441842,-250.0,0.00013194,2]
[399532951,1766453441857,-250.0,0.00013194,2]
[399532952,1766453441869,-250.0,0.00013194,2]
[399532953,1766453441880,-250.0,0.00013194,2]
[399532954,1766453441893,-250.0,0.00013194,2]
[399532955,1766453441904,-250.0,0.00013194,2]
[399532956,1766453441916,-250.0,0.00013194,2]
[399532957,1766453441929,-250.0,0.00013194,2]
[399532958,1766453441941,-250.0,0.00013194,2]
[399532959,1766453441952,-250.0,0.00013194,2]
[399532960,1766453441964,-250.0,0.00013194,2]
[399532961,1766453441975,-250.0,0.00013194,2]
[399532962,1766453441987,-250.0,0.00013194,2]
[399532963,1766453441998,-250.0,0.00013194,2]
[399532964,1766453442010,-250.0,0.00013194,2]
[399532965,1766453442022,-250.0,0.00013194,2]
[399532966,1766453442034,-250.0,0.00013194,2]
[399532967,1766453442045,-250.0,0.00013194,2]
[399532968,1766453442057,-250.0,0.00013194,2]
[399532969,1766453442069,-250.0,0.00013194,2]
[399532970,1766453442081,-250.0,0.00013194,2]
[399532971,1766453442093,-250.0,0.00013194,2]
[399532972,1766453442104,-200.87,0.00013195,2]
[399532973,1766453442116,-4716.48436413,0.00013202,2]
[399532974,1766453442128,-250.0,0.00013315,2]
[399532975,1766453442140,-500.0,0.00013397,2]
[399532976,1766453442153,-2351.0,0.00013412,2]
[399532977,1766453442164,-151.38,0.00013492,2]
[399532978,1766453442176,-433.0,0.00013499,2]
[399532979,1766453442189,-151.0,0.00013618,2]
[399532980,1766453442202,-151.0,0.00013628,2]
[399532981,1766453442215,-151.0,0.00013629,2]
[399532982,1766453442228,-162.03360746,0.00013632,2]
[399532983,1766453442242,-1600.0,0.00013636,2]
[399532984,1766453442255,-365.28932412,0.00013647,2]
[399532985,1766453442268,-1473.4150654,0.00013651,2]
[399532986,1766453442280,-1000.0,0.00013699,2]
[399532987,1766453442293,-166.66,0.00013699,2]
[399532988,1766453442305,-500.0,0.00013699,2]
[399532989,1766453442317,-444.54558111,0.00013699,2]
[399532990,1766453442329,-200.0,0.00013737,2]
[399532991,1766453442341,-500.0,0.00013737,2]
[399532992,1766453442355,-200.0,0.00013737,2]
[399532993,1766453442368,-595.37131296,0.00013742,2]
[399532994,1766453442380,-217.15233878,0.00013742,2]
[399532995,1766453442392,-215.93139741,0.00013742,2]
[399532996,1766453442405,-4716.48436413,0.00013818,2]
[399532997,1766453442417,-166.66,0.00013836,2]
[399532998,1766453442429,-1001.83222297,0.00013858,2]
[399532999,1766453442441,-166.66,0.00013973,2]
[399533000,1766453442453,-166.66,0.0001411,2]
[399533001,1766453442466,-365.28932412,0.00014189,2]
[399533002,1766453442478,-166.66,0.00014247,2]
[399533003,1766453442489,-200.0,0.00014285,2]
[399533004,1766453442501,-225.18697532,0.0001429,2]
[399533005,1766453442513,-617.40005154,0.0001429,2]
[399533006,1766453442524,-151.38,0.00014336,2]
[399533007,1766453442536,-166.66,0.00014384,2]
[399533008,1766453442549,-4716.48436413,0.00014435,2]
[399533009,1766453442561,-151.0,0.00014563,2]
[399533010,1766453442574,-334.5472959,0.00014563,2]
[399533011,1766453442586,-162.03360746,0.00014721,2]
[399533012,1766453442598,-365.28932412,0.00014732,2]
[399533013,1766453442610,-1000.0,0.00014739,2]
[399533014,1766453442622,-3292.0,0.00014753,2]
[399533015,1766453442635,-736.0,0.00014763,2]
[399533016,1766453442646,-207.4,0.00014832,2]
[399533017,1766453442659,-200.0,0.00014833,2]
[399533018,1766453442671,-233.51889341,0.00014838,2]
[399533019,1766453442683,-640.24385345,0.00014838,2]
[399533020,1766453442695,-10799.0,0.00014993,2]
[399533021,1766453442707,-2637.88237455,0.00015,14]
[399533022,1766453442719,-625.0,0.00015019,2]
[399533023,1766453442731,-1600.0,0.00015151,2]
[399533024,1766453442743,-151.38,0.00015179,2]
[399533025,1766453442755,-365.28932412,0.00015274,2]
[399533026,1766453442768,-620.0,0.00015366,2]
[399533027,1766453442780,-299.21427027,0.00015381,2]
[399533028,1766453442793,-242.15909246,0.00015386,2]
[399533029,1766453442805,-663.93287602,0.00015386,2]
[399533030,1766453442817,-620.0,0.00015435,2]
[399533031,1766453442829,-620.0,0.0001547,2]
[399533032,1766453442841,-620.0,0.00015486,2]
[399533033,1766453442857,-500.0,0.00015497,2]
[399533034,1766453442869,-620.0,0.00015505,2]
[399533035,1766453442881,-620.0,0.00015756,2]
[399533036,1766453442895,-863.04636609,0.0001579,2]
[399533037,1766453442907,-162.03360746,0.00015811,2]
[399533038,1766453442919,-365.28932412,0.00015816,2]
[399533039,1766453442932,-620.0,0.00015827,2]
[399533040,1766453442944,-620.0,0.0001583,2]
[399533041,1766453442956,-620.0,0.00015881,2]
[399533042,1766453442968,-151.0,0.00015932,2]
[399533043,1766453442981,-346.92554585,0.00015932,2]
[399533044,1766453442993,-747.8093786,0.00015933,2]
[399533045,1766453443007,-599.60298507,0.00015933,2]
[399533046,1766453443019,-642.94,0.00015933,2]
[399533047,1766453443030,-251.11897888,0.00015934,2]
[399533048,1766453443041,-688.49839244,0.00015934,2]
[399533050,1766453443053,-620.0,0.00015957,2]
[399533051,1766453443065,-774.62869,0.00016,2]
[399533052,1766453443077,-151.38,0.00016022,2]
[399533053,1766453443089,-1252.0,0.0001615,2]
[399533054,1766453443101,-5000.00446547,0.000162,5]
[399533055,1766453443113,-2278.0,0.00016228,2]
[399533056,1766453443125,-10000.0,0.00016338,2]
[399533057,1766453443137,-365.28932412,0.00016358,2]
[399533058,1766453443149,-2497.5,0.00016438,2]
[399533059,1766453443161,-500.0,0.00016438,2]
[399533060,1766453443173,-500.0,0.00016438,2]
[399533061,1766453443185,-500.0,0.00016438,2]
[399533062,1766453443197,-500.0,0.00016438,2]
[399533063,1766453443208,-500.0,0.00016438,2]
[399533064,1766453443221,-500.0,0.00016438,2]
[399533065,1766453443232,-500.0,0.00016438,2]
[399533066,1766453443244,-500.0,0.00016438,2]
[399533067,1766453443255,-500.0,0.00016438,2]
[399533068,1766453443267,-500.0,0.00016438,2]
[399533069,1766453443280,-500.0,0.00016438,2]
[399533070,1766453443291,-500.0,0.00016438,2]
[399533071,1766453443303,-500.0,0.00016438,2]
[399533072,1766453443315,-500.0,0.00016438,2]
[399533073,1766453443327,-500.0,0.00016438,2]
[399533074,1766453443340,-500.0,0.00016438,2]
[399533075,1766453443353,-500.0,0.00016438,2]
[399533080,1766453443767,-500.0,0.00016438,2]
[399533084,1766453443794,-500.0,0.00016438,2]
[399533087,1766453443812,-500.0,0.00016438,2]
[399533089,1766453443822,-500.0,0.00016438,2]
[399533090,1766453443831,-500.0,0.00016438,2]
[399533093,1766453443841,-500.0,0.00016438,2]
[399533094,1766453443854,-500.0,0.00016438,2]
[399533096,1766453443864,-500.0,0.00016438,2]
[399533099,1766453443873,-500.0,0.00016438,2]
[399533100,1766453443883,-500.0,0.00016438,2]
[399533102,1766453443893,-500.0,0.00016438,2]
[399533104,1766453443902,-500.0,0.00016438,2]
[399533106,1766453443911,-500.0,0.00016438,2]
[399533108,1766453443920,-500.0,0.00016438,2]
[399533110,1766453443931,-500.0,0.00016438,2]
[399533112,1766453443940,-500.0,0.00016438,2]
[399533114,1766453443950,-500.0,0.00016438,2]
[399533117,1766453443959,-500.0,0.00016438,2]
[399533119,1766453443969,-500.0,0.00016438,2]
[399533121,1766453443979,-500.0,0.00016438,2]
[399533123,1766453443989,-500.0,0.00016438,2]
[399533125,1766453443998,-500.0,0.00016438,2]
[399533127,1766453444009,-500.0,0.00016438,2]
[399533129,1766453444018,-500.0,0.00016438,2]
[399533131,1766453444027,-500.0,0.00016438,2]
[399533133,1766453444037,-500.0,0.00016438,2]
[399533135,1766453444046,-500.0,0.00016438,2]
[399533137,1766453444055,-500.0,0.00016438,2]
[399533139,1766453444065,-500.0,0.00016438,2]
[399533141,1766453444074,-500.0,0.00016438,2]
[399533143,1766453444083,-500.0,0.00016438,2]
[399533145,1766453444093,-500.0,0.00016438,2]
[399533147,1766453444104,-500.0,0.00016438,2]
[399533149,1766453444113,-500.0,0.00016438,2]
[399533151,1766453444122,-500.0,0.00016438,2]
[399533153,1766453444131,-500.0,0.00016438,2]
[399533155,1766453444141,-500.0,0.00016438,2]
[399533157,1766453444150,-500.0,0.00016438,2]
[399533159,1766453444159,-500.0,0.00016438,2]
[399533161,1766453444169,-500.0,0.00016438,2]
[399533163,1766453444178,-500.0,0.00016438,2]
[399533165,1766453444187,-2979.76338524,0.00016438,2]
[399533167,1766453444197,-2979.76338524,0.00016438,2]
[399533168,1766453444206,-2979.76338524,0.00016438,2]
[399533169,1766453444215,-2979.76338524,0.00016438,2]
[399533170,1766453444225,-2979.76338524,0.00016438,2]
[399533171,1766453444235,-2979.76338524,0.00016438,2]
[399533172,1766453444244,-2979.76338524,0.00016438,2]
[399533173,1766453444254,-2979.76338524,0.00016438,2]
[399533174,1766453444264,-2979.76338524,0.00016438,2]
[399533175,1766453444275,-2979.76338524,0.00016438,2]
[399533176,1766453444285,-2979.76338524,0.00016438,2]
[399533177,1766453444295,-2979.76338524,0.00016438,2]
[399533178,1766453444305,-2979.76338524,0.00016438,2]
[399533179,1766453444314,-2979.76338524,0.00016438,2]
[399533180,1766453444324,-2979.76338524,0.00016438,2]
[399533181,1766453444334,-2979.76338524,0.00016438,2]
[399533182,1766453444343,-2979.76338524,0.00016438,2]
[399533183,1766453444352,-2979.76338524,0.00016438,2]
[399533184,1766453444362,-2979.76338524,0.00016438,2]
[399533185,1766453444371,-2979.76338524,0.00016438,2]
[399533186,1766453444381,-2979.76338524,0.00016438,2]
[399533187,1766453444391,-2979.76338524,0.00016438,2]
[399533188,1766453444400,-2979.76338524,0.00016438,2]
[399533189,1766453444410,-2979.76338524,0.00016438,2]
[399533190,1766453444420,-2979.76338524,0.00016438,2]
[399533191,1766453444429,-2979.76338524,0.00016438,2]
[399533192,1766453444439,-2979.76338524,0.00016438,2]
[399533193,1766453444448,-2979.76338524,0.00016438,2]
[399533195,1766453444457,-2979.76338524,0.00016438,2]
[399533197,1766453444466,-2979.76338524,0.00016438,2]
[399533199,1766453444475,-2979.76338524,0.00016438,2]
[399533201,1766453444485,-3421.20981259,0.00016438,2]
[399533203,1766453444494,-807.25325449,0.00016438,2]
[399533206,1766453444505,-713.97283296,0.00016482,2]
[399533207,1766453444514,-260.4103811,0.00016482,2]
[399533209,1766453444523,-398.55544668,0.00016644,2]
[399533212,1766453444533,-7888.56506635,0.00016659,2]
[399533213,1766453444542,-1600.0,0.00016667,2]
[399533215,1766453444551,-150.0,0.00016699,2]
[399533218,1766453444562,-151.61208378,0.00016699,2]
[399533219,1766453444571,-150.0,0.00016699,2]
[399533222,1766453444581,-150.0,0.00016699,2]
[399533224,1766453444590,-500.0,0.00016699,2]
[399533226,1766453444601,-150.0,0.00016699,2]
[399533228,1766453444611,-204.41502637,0.00016699,2]
[399533230,1766453444620,-500.0,0.00016699,2]
[399533232,1766453444630,-150.0,0.00016699,2]
[399533234,1766453444639,-150.0,0.00016699,2]
[399533236,1766453444648,-150.0,0.00016699,2]
[399533238,1766453444657,-150.0,0.00016699,2]
[399533240,1766453444667,-151.41928743,0.00016699,2]
[399533242,1766453444675,-175.15780036,0.00016699,2]
[399533244,1766453444684,-278.54080878,0.00016699,2]
[399533246,1766453444693,-150.0,0.00016699,2]
[399533248,1766453444703,-150.0,0.00016699,2]
[399533250,1766453444712,-256.91793341,0.00016699,2]
[399533252,1766453444721,-150.0,0.00016699,2]
[399533254,1766453444731,-150.0,0.00016699,2]
[399533256,1766453444740,-164.99688359,0.00016699,2]
[399533258,1766453444749,-979.0,0.000167,2]
[399533260,1766453444758,-305.0,0.000167,2]
[399533262,1766453444767,-150.0,0.00016726,2]
[399533264,1766453444778,-200.0,0.00016726,2]
[399533266,1766453444787,-500.33646176,0.00016726,2]
[399533268,1766453444797,-150.0,0.00016726,2]
[399533270,1766453444806,-500.0,0.00016726,2]
[399533272,1766453444815,-150.0,0.00016726,2]
[399533274,1766453444825,-150.0,0.00016726,2]
[399533276,1766453444835,-150.0,0.00016726,2]
[399533278,1766453444844,-150.0,0.00016754,2]
[399533280,1766453444856,-250.0,0.00016754,2]
[399533282,1766453444866,-500.0,0.00016754,2]
[399533284,1766453444875,-265.58426343,0.00016777,7]
[399533286,1766453444885,-150.0,0.00016781,2]
[399533288,1766453444894,-500.0,0.00016781,2]
[399533290,1766453444904,-201.31035432,0.00016809,2]
[399533292,1766453444913,-197.6828965,0.00016828,2]
[399533294,1766453444923,-200.0,0.00016862,2]
[399533296,1766453444933,-200.0,0.00016863,2]
[399533298,1766453444943,-200.0,0.00016863,2]
[399533300,1766453444952,-200.0,0.00016863,2]
[399533302,1766453444962,-200.0,0.00016863,2]
[399533304,1766453444971,-151.38,0.00016866,2]
[399533305,1766453444980,-10073.051,0.000169,2]
[399533306,1766453444990,-167.0,0.000169,2]
[399533307,1766453444999,-365.28932412,0.000169,2]
[399533308,1766453445009,-162.03360746,0.000169,2]
[399533309,1766453445019,-193.8213382,0.000169,2]
[399533310,1766453445028,-1149.41457005,0.000169,2]
[399533311,1766453445038,-483.29386132,0.000169,2]
[399533312,1766453445047,-662.32413028,0.000169,2]
[399533313,1766453445057,-300.0,0.00016922,2]
[399533314,1766453445066,-43158.9018717,0.00016923,2]
[399533315,1766453445076,-7959.2900345,0.00016923,2]
[399533316,1766453445085,-220224.4459484,0.00016923,2]
[399533317,1766453445095,-151.98011886,0.00016966,2]
[399533318,1766453445104,-500.0,0.00016973,2]
[399533319,1766453445114,-500.0,0.00016973,2]
[399533320,1766453445123,-500.0,0.00016973,2]
[399533321,1766453445133,-500.0,0.00016973,2]
[399533322,1766453445142,-385.79145612,0.00016973,2]
[399533323,1766453445151,-201.76124689,0.00016973,2]
[399533324,1766453445161,-363.1702444,0.00016973,2]
[399533325,1766453445170,-153.26682395,0.00016973,2]
[399533326,1766453445179,-502.74737926,0.00016982,2]
[399533327,1766453445188,-3900.45175371,0.00016986,2]
[399533328,1766453445198,-300.0,0.00016998,2]
[399533329,1766453445207,-306.35405335,0.00016998,2]
[399533330,1766453445217,-285.60562456,0.00016999,2]
[399533331,1766453445226,-500.0,0.00016999,2]
[399533332,1766453445237,-500.0,0.00016999,2]
[399533333,1766453445247,-500.0,0.00016999,2]
[399533334,1766453445256,-500.0,0.00016999,2]
[399533335,1766453445265,-500.0,0.00016999,2]
[399533336,1766453445275,-500.0,0.00016999,2]
[399533337,1766453445284,-500.0,0.00016999,2]
[399533338,1766453445294,-183.93452706,0.00016999,2]
[399533339,1766453445303,-500.0,0.00016999,2]
[399533340,1766453445312,-500.0,0.00016999,2]
[399533341,1766453445321,-500.0,0.00016999,2]
[399533342,1766453445331,-500.0,0.00016999,2]
[399533343,1766453445340,-500.0,0.00016999,2]
[399533344,1766453445349,-500.0,0.00016999,2]
[399533345,1766453445358,-604.31886581,0.00016999,2]
[399533346,1766453445369,-500.0,0.00016999,2]
[399533347,1766453445378,-500.0,0.00016999,2]
[399533348,1766453445388,-500.0,0.00016999,2]
[399533349,1766453445398,-500.0,0.00016999,2]
[399533350,1766453445408,-500.0,0.00016999,2]
[399533351,1766453445417,-500.0,0.00016999,2]
[399533352,1766453445426,-500.0,0.00016999,2]
[399533353,1766453445435,-500.0,0.00016999,2]
[399533354,1766453445445,-500.0,0.00016999,2]
[399533355,1766453445454,-500.0,0.00016999,2]
[399533356,1766453445463,-500.0,0.00016999,2]
[399533357,1766453445473,-500.0,0.00016999,2]
[399533358,1766453445482,-500.0,0.00016999,2]
[399533359,1766453445491,-500.0,0.00016999,2]
[399533360,1766453445500,-500.0,0.00016999,2]
[399533361,1766453445509,-500.0,0.00016999,2]
[399533362,1766453445519,-500.0,0.00016999,2]
[399533363,1766453445528,-500.0,0.00016999,2]
[399533364,1766453445537,-500.0,0.00016999,2]
[399533365,1766453445546,-500.0,0.00016999,2]
[399533366,1766453445555,-500.0,0.00016999,2]
[399533367,1766453445565,-500.0,0.00016999,2]
[399533368,1766453445575,-500.0,0.00016999,2]
[399533369,1766453445584,-330.02695213,0.00016999,2]
[399533370,1766453445593,-500.0,0.00016999,2]
[399533371,1766453445603,-500.0,0.00016999,2]
[399533372,1766453445612,-531.25264543,0.00016999,2]
[399533373,1766453445621,-1019.77444314,0.00016999,5]
[399533374,1766453445630,-1019.77444314,0.00016999,5]
[399533375,1766453445640,-1019.77444313,0.00016999,5]
[399533376,1766453445649,-1627.54,0.00016999,2]
[399533377,1766453445658,-1627.54,0.00016999,2]
[399533378,1766453445667,-1627.54,0.00016999,2]
[399533379,1766453445676,-1627.54,0.00016999,2]
[399533380,1766453445685,-1627.54,0.00016999,2]
[399533381,1766453445694,-1627.54,0.00016999,2]
[399533382,1766453445703,-1627.54,0.00016999,2]
[399533383,1766453445712,-1627.54,0.00016999,2]
[399533384,1766453445722,-1627.54,0.00016999,2]
[399533385,1766453445731,-1627.54,0.00016999,2]
[399533386,1766453445742,-1627.54,0.00016999,2]
[399533387,1766453445751,-1627.54,0.00016999,2]
[399533388,1766453445761,-1627.54,0.00016999,2]
[399533389,1766453445770,-1627.54,0.00016999,2]